fUSD/lending_fUSD_20240406
["ID","MTS","AMOUNT","RATE_DAILY","PERIOD"]
[321674637,1712374773926,151.0,0.00025,7]
[321674638,1712374774193,151.0,0.00025,7]
[321674639,1712374774471,151.0,0.00025,7]
[321674640,1712374774747,151.0,0.00025,7]
[321674641,1712374775011,151.0,0.00025,7]
[321674642,1712374776231,151.0,0.00025,7]
[321674643,1712374776978,151.0,0.00025,7]
[321674644,1712374777198,151.0,0.00025,7]
[321674645,1712374777471,55.32028906,0.00025,7]
[321674647,1712374916072,600.0,0.000239,8]
[321674648,1712374919532,317.41034217,0.00023748,7]
[321674649,1712374973454,569.6055879,0.00022012,7]
[321674650,1712375041957,569.6055879,0.00023747,7]
[321674651,1712375114496,569.6055879,0.00023747,7]
[321674652,1712375245627,500.0,0.000239,8]
[321674654,1712375363308,194.48,0.00023744,10]
[321674657,1712375431595,-155.0,0.00021864,2]
[321674658,1712375431605,-446.8879432,0.00021864,2]
[321674659,1712375431614,-670.25278627,0.00021865,2]
[321674660,1712375431623,-323.11,0.0002188,2]
[321674661,1712375431633,-1500.0,0.00023733,2]
[321674662,1712375431642,-325.36382504,0.00023748,2]
[321674663,1712375431651,-209.88080854,0.00023748,2]
[321674664,1712375431660,-196.04,0.00023749,2]
[321674665,1712375431670,-640.0,0.00023753,2]
[321674666,1712375431679,-360.0,0.00023935,2]
[321674667,1712375431688,-878.90559145,0.00024,8]
[321674668,1712375431701,-221.09440855,0.00024,8]
[321674669,1712375431710,-150.0,0.00024098,2]
[321674670,1712375431720,-3650.8,0.00024099,2]
[321674671,1712375431730,-786.0569813,0.000241,2]
[321674672,1712375431756,-120.84726803,0.000241,2]
[321674673,1712375431765,-299.66504719,0.000241,8]
[321674674,1712375431809,-341.48088377,0.000241,8]
[321674675,1712375431866,-1058.85406904,0.000241,8]
[321674676,1712375431875,-323.11,0.00024144,2]
[321674677,1712375431885,-2300.0,0.000242,8]
[321674678,1712375431894,-1538.13772479,0.000243,8]
[321674680,1712375437977,-1361.86227521,0.000243,8]
[321674681,1712375437987,-194.48,0.00024326,10]
[321674682,1712375437996,-500.0,0.000244,8]
[321674683,1712375438006,-500.0,0.000245,8]
[321674684,1712375438015,-500.0,0.000246,8]
[321674685,1712375438025,-240.81,0.00024658,4]
[321674686,1712375438035,-500.0,0.000247,9]
[321674687,1712375438047,-1527.19124648,0.00024738,2]
[321674688,1712375438087,-2336.92012187,0.00024738,2]
[321674691,1712375439831,-1036.73511253,0.00024738,2]
[321674692,1712375439888,-500.80584666,0.00024738,2]
[321674699,1712375442607,-38356.33938165,0.00024738,2]
[321674700,1712375442617,-2948.03304,0.0002475,2]
[321674701,1712375442626,-500.0,0.00024798,2]
[321674702,1712375442635,-499.99,0.00024798,2]
[321674703,1712375442644,-786.0,0.000248,2]
[321674704,1712375442653,-1412.0,0.000248,9]
[321674705,1712375442661,-299.99,0.000248,7]
[321674706,1712375442670,-2948.03304,0.0002481,2]
[321674707,1712375442680,-27836.11070004,0.00024897,2]
[321674708,1712375442689,-8191.5532,0.00024898,2]
[321674709,1712375442698,-206.25435471,0.00024899,2]
[321674710,1712375442708,-206.25435471,0.00024899,2]
[321674711,1712375442717,-206.25435471,0.00024899,2]
[321674712,1712375442726,-206.25435471,0.00024899,2]
[321674713,1712375442736,-160.76920017,0.000249,2]
[321674714,1712375442745,-206.25435471,0.000249,2]
[321674715,1712375442755,-160.76920017,0.000249,2]
[321674716,1712375442764,-206.25435471,0.000249,2]
[321674717,1712375442774,-172.30916726,0.000249,2]
[321674718,1712375442783,-160.76920017,0.000249,2]
[321674719,1712375442792,-255.27307983,0.000249,2]
[321674720,1712375442801,-195.20640055,0.000249,2]
[321674721,1712375442811,-206.25435471,0.000249,2]
[321674722,1712375442821,-393.23821743,0.000249,4]
[321674723,1712375442830,-151.040612,0.00024906,2]
[321674724,1712375442839,-151.040612,0.00024906,2]
[321674725,1712375442849,-194.48,0.00024908,10]
[321674726,1712375442858,-214.0,0.00024973,2]
[321674727,1712375442867,-470.66,0.00024988,3]
[321674728,1712375442877,-2210.8567849,0.0002499,2]
[321674729,1712375442887,-5350.0,0.0002499,2]
[321674730,1712375442897,-150.51568958,0.00024997,2]
[321674731,1712375442906,-675.78823436,0.00024997,2]
[321674732,1712375442954,-1192.62182596,0.00024997,2]
[321674768,1712375451761,-3953.6958134,0.00024997,2]
[321674769,1712375451771,-309.3557049,0.00024997,2]
[321674770,1712375451780,-1986.7556027,0.00024997,2]
[321674771,1712375451790,-484.07413706,0.00024998,7]
[321674772,1712375451800,-2370.07993217,0.00024998,2]
[321674773,1712375451809,-814.52256529,0.00024998,2]
[321674774,1712375451981,-252.58556911,0.00024898,2]
[321674775,1712375451998,-3263.05456277,0.00024898,2]
[321674776,1712375452013,-1734.24226812,0.00024898,2]
[321674777,1712375452023,-450.00919271,0.00024998,2]
[321674778,1712375452032,-16500.9210973,0.00024998,2]
[321674779,1712375452041,-277.29972441,0.00024998,2]
[321674780,1712375452050,-651.99520399,0.00024998,2]
[321674781,1712375452060,-327.33813941,0.00024998,2]
[321674782,1712375452069,-43778.01414884,0.00024998,2]
[321674783,1712375452078,-3961.18022526,0.00024998,3]
[321674784,1712375452105,-150.01,0.00024997,2]
[321674785,1712375452114,-279.36710478,0.00024998,2]
[321674786,1712375452126,-521.88682691,0.00024998,2]
[321674787,1712375452136,-9496.2915003,0.00024998,3]
[321674788,1712375452177,-11887.59717412,0.00024998,3]
[321674802,1712375771605,500.0,0.00024,7]
[321674803,1712375790374,1000.0,0.00024,7]
[321674804,1712375795096,1450.0,0.00021,3]
[321674805,1712375797367,1000.0,0.00024,7]
[321674806,1712375806046,690.6,0.00024,7]
[321674807,1712375814278,500.0,0.00024,7]
[321674808,1712375823717,1000.0,0.00024,7]
[321674809,1712375868284,-537.76646111,0.00019999,2]
[321674810,1712375868306,-524.41216458,0.0002,2]
[321674811,1712375912917,194.48,0.00023846,10]
[321674818,1712376230659,-550.51311595,0.00021769,2]
[321674819,1712376230684,-300.0,0.0002177,2]
[321674820,1712376230707,-290.79,0.00021927,2]
[321674821,1712376230730,-555.9207,0.000229,2]
[321674822,1712376230752,-302.77618405,0.00023,3]
[321674823,1712376231945,-1197.22381595,0.00023,3]
[321674824,1712376231968,-802.77618405,0.00023,2]
[321674825,1712376232336,-2000.0,0.00023,2]
[321674826,1712376232642,-2000.0,0.00023,2]
[321674827,1712376233006,-2000.0,0.00023,2]
[321674828,1712376233321,-2000.0,0.00023,2]
[321674829,1712376233650,-2000.0,0.00023,2]
[321674830,1712376233973,-2000.0,0.00023,2]
[321674831,1712376234289,-2000.0,0.00023,2]
[321674832,1712376234617,-2000.0,0.00023,2]
[321674833,1712376235021,-2000.0,0.00023,2]
[321674834,1712376236028,-2000.0,0.00023,2]
[321674835,1712376236401,-2000.0,0.00023,2]
[321674836,1712376236732,-2000.0,0.00023,2]
[321674837,1712376237123,-2000.0,0.00023,2]
[321674838,1712376238407,-2000.0,0.00023,2]
[321674839,1712376238793,-2000.0,0.00023,2]
[321674840,1712376239431,-2000.0,0.00023,2]
[321674841,1712376240083,-2000.0,0.00023,2]
[321674842,1712376240600,-2000.0,0.00023,2]
[321674843,1712376242238,-2000.0,0.00023,2]
[321674844,1712376242828,-2000.0,0.00023,2]
[321674845,1712376243569,-2000.0,0.00023,2]
[321674846,1712376245402,-2000.0,0.00023,2]
[321674847,1712376246008,-2000.0,0.00023,2]
[321674849,1712376322768,460.84943411,0.00019995,2]
[321674855,1712376437764,194.48,0.00023833,10]
[321674877,1712376631754,-1044.7603392,0.00021895,2]
[321674879,1712376631768,-276.25,0.00021896,2]
[321674881,1712376631778,-150.0,0.00022995,2]
[321674883,1712376631787,-150.0,0.00022995,2]
[321674884,1712376631797,-300.0,0.00022995,2]
[321674885,1712376631808,-742.62734558,0.00022996,2]
[321674886,1712376631917,-326.94545494,0.00022996,2]
[321674887,1712376631929,-486.80000001,0.00022996,2]
[321674888,1712376632029,-857.52618989,0.00022996,2]
[321674889,1712376632039,-1056.27923331,0.00022996,2]
[321674890,1712376632052,-256.20107005,0.00022996,2]
[321674891,1712376632066,-267.85675465,0.00022996,2]
[321674892,1712376632078,-2280.58687834,0.00022996,2]
[321674893,1712376632090,-4706.2270678,0.00022996,2]
[321674894,1712376632143,-401.14471915,0.00022996,2]
[321674895,1712376632152,-833.24112832,0.00022998,2]
[321674926,1712376632471,-28.72507133,0.00022998,2]
[321674928,1712376632480,-53.95799998,0.00023,2]
[321674947,1712376637777,-257.9,0.00023,2]
[321674948,1712376637832,-850.71112137,0.00023,2]
[321674949,1712376637843,-3304.42265926,0.00023,2]
[321674950,1712376637853,-292.19208107,0.00023,2]
[321674951,1712376637862,-3012.1502,0.00023742,2]
[321674952,1712376637872,-192.27221681,0.00023744,2]
[321674953,1712376637881,-1500.0,0.00023819,2]
[321674954,1712376637891,-512.0,0.00023842,2]
[321674955,1712376637901,-195.04,0.00023855,2]
[321674956,1712376637910,-488.0,0.0002392,2]
[321674957,1712376637919,-226.04231077,0.00024,2]
[321674958,1712376637930,-276.25,0.0002416,2]
[321674959,1712376637939,-150.0,0.00024729,2]
[321674960,1712376637949,-150.0,0.00024729,2]
[321674961,1712376637958,-150.0,0.00024733,2]
[321674962,1712376637968,-150.0,0.00024735,2]
[321674963,1712376637977,-150.0,0.00024735,2]
[321674964,1712376637987,-150.0,0.00024739,2]
[321674965,1712376637998,-150.0,0.0002474,2]
[321674966,1712376638007,-150.0,0.00024744,2]
[321674967,1712376638017,-150.0,0.00024746,2]
[321674968,1712376638026,-150.0,0.00024748,2]
[321674969,1712376638037,-150.0,0.00024748,2]
[321674970,1712376638047,-150.0,0.00024749,2]
[321674971,1712376638057,-150.0,0.0002475,2]
[321674972,1712376638068,-150.0,0.0002475,2]
[321674973,1712376638077,-1965.35536,0.0002475,2]
[321674974,1712376638088,-150.0,0.00024751,2]
[321674975,1712376638097,-150.0,0.00024752,2]
[321674976,1712376638107,-150.0,0.00024753,2]
[321674977,1712376638117,-150.0,0.00024754,2]
[321674978,1712376638127,-150.0,0.00024762,2]
[321674979,1712376638137,-150.0,0.00024764,2]
[321674980,1712376638146,-150.0,0.00024764,2]
[321674981,1712376638156,-150.0,0.00024765,2]
[321674982,1712376638165,-150.0,0.00024766,2]
[321674984,1712376638175,-150.0,0.0002477,2]
[321674986,1712376638184,-150.0,0.00024772,2]
[321674989,1712376638194,-150.0,0.00024773,2]
[321674991,1712376638203,-150.0,0.00024776,2]
[321674992,1712376638213,-150.0,0.00024777,2]
[321674994,1712376638222,-150.0,0.00024779,2]
[321674995,1712376638231,-150.0,0.00024782,2]
[321674996,1712376638241,-150.0,0.00024787,2]
[321674997,1712376638251,-150.0,0.00024787,2]
[321674998,1712376638262,-150.0,0.00024788,2]
[321674999,1712376638273,-150.0,0.0002479,2]
[321675000,1712376638283,-150.0,0.0002479,2]
[321675001,1712376638293,-150.0,0.00024791,2]
[321675002,1712376638303,-150.0,0.00024794,2]
[321675003,1712376638312,-150.0,0.00024795,2]
[321675004,1712376638322,-150.0,0.00024797,2]
[321675005,1712376638332,-500.0,0.00024798,2]
[321675006,1712376638342,-420.0,0.000248,2]
[321675007,1712376638351,-150.0,0.00024802,2]
[321675008,1712376638361,-150.0,0.00024803,2]
[321675009,1712376638370,-150.0,0.00024813,2]
[321675010,1712376638379,-150.0,0.00024816,2]
[321675011,1712376638388,-150.0,0.00024817,2]
[321675012,1712376638397,-150.0,0.00024819,2]
[321675013,1712376638406,-150.0,0.00024822,2]
[321675014,1712376638416,-150.0,0.00024824,2]
[321675015,1712376638425,-150.0,0.00024826,2]
[321675016,1712376638435,-150.0,0.00024834,2]
[321675017,1712376638445,-150.0,0.00024834,2]
[321675018,1712376638454,-150.0,0.00024836,2]
[321675019,1712376638464,-150.0,0.00024844,2]
[321675020,1712376638472,-150.0,0.00024846,2]
[321675021,1712376638481,-150.0,0.00024851,2]
[321675022,1712376638493,-150.0,0.00024853,2]
[321675023,1712376638502,-150.0,0.00024858,2]
[321675024,1712376638512,-150.0,0.00024859,2]
[321675025,1712376638521,-150.0,0.00024859,2]
[321675026,1712376638530,-150.0,0.00024862,2]
[321675027,1712376638540,-150.0,0.00024868,2]
[321675028,1712376638549,-150.0,0.00024874,2]
[321675029,1712376638559,-150.0,0.00024874,2]
[321675030,1712376638569,-150.0,0.00024874,2]
[321675031,1712376638578,-150.0,0.00024875,2]
[321675032,1712376638587,-150.0,0.00024876,2]
[321675033,1712376638597,-150.0,0.00024879,2]
[321675034,1712376638607,-150.0,0.00024882,2]
[321675035,1712376638616,-150.0,0.00024884,2]
[321675036,1712376638626,-150.0,0.00024886,2]
[321675037,1712376638634,-150.0,0.00024886,2]
[321675038,1712376638644,-160.7692002,0.00024895,2]
[321675039,1712376638653,-268.23691451,0.00024895,2]
[321675040,1712376638663,-628.2772,0.00024895,2]
[321675041,1712376638672,-268.23691447,0.00024896,2]
[321675042,1712376638682,-160.76920018,0.00024896,2]
[321675043,1712376638692,-7500.0,0.00024896,2]
[321675044,1712376638702,-150.0,0.00024896,2]
[321675045,1712376638712,-268.23691447,0.00024896,2]
[321675046,1712376638721,-160.76920018,0.00024897,2]
[321675047,1712376638731,-268.23691447,0.00024897,2]
[321675048,1712376638743,-170.57947174,0.00024897,2]
[321675049,1712376638753,-268.23691447,0.00024897,2]
[321675050,1712376638763,-160.76920018,0.00024898,2]
[321675051,1712376638776,-268.23691447,0.00024898,2]
[321675052,1712376638786,-150.0,0.00024898,2]
[321675053,1712376638797,-212.75678279,0.00024898,2]
[321675054,1712376638808,-300.56822196,0.00024898,2]
[321675055,1712376638819,-15811.3578,0.00024898,2]
[321675056,1712376638829,-160.76920018,0.00024898,2]
[321675057,1712376638839,-268.23691447,0.00024898,2]
[321675058,1712376638851,-268.23691447,0.00024899,2]
[321675059,1712376638861,-150.0,0.00024899,2]
[321675060,1712376638871,-160.76920018,0.00024899,2]
[321675061,1712376638883,-268.23691447,0.00024899,2]
[321675062,1712376638894,-15623.07040634,0.000249,2]
[321675063,1712376638903,-150.0,0.000249,2]
[321675064,1712376638912,-198.12529072,0.000249,2]
[321675065,1712376638922,-160.76920018,0.000249,2]
[321675066,1712376638932,-212.75678279,0.000249,2]
[321675067,1712376638941,-268.23691447,0.000249,2]
[321675068,1712376638950,-150.0,0.00024904,2]
[321675069,1712376638961,-150.0,0.00024912,2]
[321675070,1712376638972,-150.0,0.00024922,2]
[321675071,1712376638982,-150.0,0.00024924,2]
[321675072,1712376638993,-150.0,0.00024926,2]
[321675073,1712376639002,-150.0,0.0002493,2]
[321675074,1712376639012,-150.0,0.00024931,2]
[321675075,1712376639023,-150.0,0.00024931,2]
[321675076,1712376639032,-150.0,0.00024931,2]
[321675077,1712376639041,-150.0,0.00024933,2]
[321675078,1712376639051,-150.0,0.00024942,2]
[321675079,1712376639060,-150.0,0.00024947,2]
[321675080,1712376639069,-151.16378277,0.00024948,2]
[321675081,1712376639078,-150.0,0.00024952,2]
[321675082,1712376639088,-150.0,0.00024956,2]
[321675083,1712376639097,-150.0,0.00024956,2]
[321675084,1712376639106,-150.0,0.00024958,2]
[321675085,1712376639117,-150.0,0.00024964,2]
[321675086,1712376639126,-150.0,0.00024965,2]
[321675087,1712376639135,-150.0,0.00024967,2]
[321675088,1712376639144,-150.0,0.00024969,2]
[321675089,1712376639154,-150.0,0.00024971,2]
[321675090,1712376639163,-150.0,0.00024974,2]
[321675091,1712376639173,-150.0,0.00024986,2]
[321675092,1712376639182,-150.0,0.00024987,2]
[321675093,1712376639191,-150.0,0.00024991,2]
[321675094,1712376639200,-150.0,0.00024991,2]
[321675095,1712376639210,-452.23181585,0.00024994,2]
[321675096,1712376639219,-2058.65473927,0.00024994,2]
[321675097,1712376639229,-1598.856489,0.00024994,2]
[321675098,1712376639238,-673.03775094,0.00024994,2]
[321675099,1712376639251,-499.9930608,0.00024994,2]
[321675100,1712376639260,-369.02186392,0.00024994,2]
[321675101,1712376639270,-22440.35039813,0.00024994,2]
[321675102,1712376639279,-308.11300013,0.00024994,2]
[321675103,1712376639288,-622.80891129,0.00024994,2]
[321675104,1712376639297,-289.95834888,0.00024994,2]
[321675105,1712376639306,-904.49730073,0.00024994,2]
[321675106,1712376639316,-260.08259237,0.00024994,2]
[321675107,1712376639325,-225.21238411,0.00024994,2]
[321675108,1712376639335,-266.01423954,0.00024994,2]
[321675109,1712376639345,-1077928.20557239,0.00024994,2]
[321675110,1712376639360,-808.75030777,0.00024994,2]
[321675111,1712376639373,-741.27723955,0.00024994,2]
[321675112,1712376639385,-420.8888349,0.00024994,2]
[321675113,1712376639398,-324.95664198,0.00024994,2]
[321675114,1712376639411,-474.38612961,0.00024994,2]
[321675115,1712376639424,-8291.41377942,0.00024994,2]
[321675116,1712376639456,-150.0,0.00024911,2]
[321675117,1712376639466,-5800.14032621,0.00024994,2]
[321675125,1712376643174,-150.0,0.00024754,2]
[321675126,1712376643184,-150.0,0.00024759,2]
[321675127,1712376643193,-150.0,0.00024779,2]
[321675128,1712376643203,-126.3935,0.0002478,2]
[321675129,1712376643224,-23.6065,0.0002478,2]
[321675130,1712376643233,-150.0,0.00024806,2]
[321675131,1712376643243,-150.0,0.0002492,2]
[321675132,1712376643253,-150.0,0.00024943,2]
[321675133,1712376643262,-150.0,0.00024982,2]
[321675134,1712376643272,-3849.23918577,0.00024994,2]
[321675135,1712376643283,-1642.69625611,0.00024994,2]
[321675136,1712376643294,-18676.72707672,0.00024994,2]
[321675137,1712376643306,-15346.35265771,0.00024994,2]
[321675170,1712377204270,-620.18279938,0.00021955,2]
[321675171,1712377204296,-275.73,0.00021956,2]
[321675172,1712377204317,-409.6,0.00023856,2]
[321675173,1712377204341,-609.83,0.00023862,2]
[321675174,1712377204364,-3793.65720062,0.00023881,2]
[321675175,1712377251333,-4378.0,0.00023881,2]
[321675176,1712377284768,-8759.0,0.00023881,2]
[321675177,1712377605206,1450.0,0.00021,3]
[321675183,1712377831986,-261.94,0.00021918,2]
[321675184,1712377831996,-1423.27396561,0.00023,3]
[321675185,1712377832038,-76.72603439,0.00023,3]
[321675186,1712377832048,-232.55514664,0.00023825,2]
[321675187,1712377832094,-267.44485336,0.00023825,2]
[321675188,1712377832104,-193.04,0.00023828,2]
[321675189,1712377832113,-27.92501695,0.00023832,2]
[321675190,1712377832125,-836.26948837,0.00023832,2]
[321675191,1712377832157,-256.05399999,0.00023832,2]
[321675192,1712377832262,-5839.09149469,0.00023832,2]
[321675193,1712377832272,-672.32,0.00023834,2]
[321675194,1712377832281,-528.35667838,0.0002388,2]
[321675195,1712377832290,-261.94,0.00024182,2]
[321675196,1712377832300,-1017.0,0.000247,2]
[321675197,1712377832309,-150.0,0.00024726,2]
[321675198,1712377832320,-499.99,0.00024726,2]
[321675199,1712377832329,-150.0,0.00024728,2]
[321675200,1712377832338,-150.0,0.0002473,2]
[321675201,1712377832348,-150.0,0.00024737,2]
[321675202,1712377832357,-150.0,0.0002474,2]
[321675203,1712377832366,-209.81668921,0.0002474,2]
[321675204,1712377832376,-150.0,0.00024747,2]
[321675206,1712377832385,-150.0,0.00024756,2]
[321675208,1712377832394,-150.0,0.00024773,2]
[321675210,1712377832403,-150.0,0.00024781,2]
[321675211,1712377832412,-150.0,0.00024783,2]
[321675212,1712377832422,-150.0,0.00024785,2]
[321675213,1712377832431,-150.0,0.00024786,2]
[321675215,1712377832441,-150.0,0.00024786,2]
[321675218,1712377832450,-150.0,0.00024789,2]
[321675220,1712377832459,-150.0,0.00024791,2]
[321675221,1712377832468,-150.0,0.00024794,2]
[321675222,1712377832477,-150.0,0.00024795,2]
[321675223,1712377832486,-230.8127,0.00024797,2]
[321675224,1712377832495,-500.0,0.00024798,2]
[321675225,1712377832504,-1014.0,0.000248,2]
[321675226,1712377832514,-150.0,0.000248,2]
[321675227,1712377832525,-2058.65473927,0.000248,2]
[321675228,1712377832534,-1216.08616435,0.00024804,2]
[321675230,1712377832544,-150.0,0.00024805,2]
[321675232,1712377832553,-150.0,0.00024806,2]
[321675234,1712377832563,-1216.08616435,0.00024806,2]
[321675236,1712377832573,-150.0,0.00024809,2]
[321675237,1712377832582,-150.0,0.00024815,2]
[321675238,1712377832591,-150.0,0.00024819,2]
[321675239,1712377832600,-36737.44455142,0.00024826,2]
[321675240,1712377832612,-2365.71554263,0.00024826,2]
[321675241,1712377832624,-6837.00639652,0.00024826,2]
[321675242,1712377838253,-428.007,0.00024826,2]
[321675243,1712377838266,-73002.05909325,0.00024826,2]
[321675244,1712377838275,-1216.08616435,0.00024827,2]
[321675245,1712377838285,-1216.08616435,0.0002483,2]
[321675246,1712377838294,-1216.08616435,0.00024835,2]
[321675247,1712377838303,-150.0,0.00024836,2]
[321675248,1712377838313,-150.0,0.00024837,2]
[321675249,1712377838323,-150.0,0.00024837,2]
[321675250,1712377838332,-150.0,0.00024838,2]
[321675251,1712377838342,-1216.08616435,0.00024839,2]
[321675252,1712377838351,-150.0,0.00024839,2]
[321675253,1712377838361,-1216.08616435,0.00024841,2]
[321675254,1712377838371,-150.0,0.00024847,2]
[321675255,1712377838381,-150.0,0.0002485,2]
[321675256,1712377838391,-150.0,0.00024854,2]
[321675257,1712377838401,-150.0,0.00024855,2]
[321675258,1712377838410,-150.0,0.00024858,2]
[321675259,1712377838419,-150.0,0.00024871,2]
[321675260,1712377838429,-150.0,0.00024877,2]
[321675261,1712377838439,-150.0,0.00024883,2]
[321675262,1712377838448,-150.0,0.00024888,2]
[321675263,1712377838458,-185.72454724,0.00024888,2]
[321675264,1712377838468,-150.0,0.0002489,2]
[321675265,1712377838478,-1216.08616435,0.00024891,2]
[321675266,1712377838488,-1216.08616435,0.00024894,2]
[321675267,1712377838497,-170.91181164,0.00024894,2]
[321675268,1712377838506,-170.91181161,0.00024895,2]
[321675269,1712377838517,-170.91181161,0.00024896,2]
[321675270,1712377838527,-24175.3151,0.00024897,2]
[321675271,1712377838537,-3768.927,0.00024897,2]
[321675272,1712377838546,-170.91181161,0.00024897,2]
[321675273,1712377838556,-170.91181161,0.00024898,2]
[321675274,1712377838565,-300.56822192,0.00024898,2]
[321675275,1712377838574,-11920.5077,0.00024898,2]
[321675276,1712377838583,-300.56822192,0.00024898,2]
[321675277,1712377838592,-300.56822192,0.00024899,2]
[321675278,1712377838601,-300.56822192,0.00024899,2]
[321675279,1712377838611,-170.91181161,0.00024899,2]
[321675280,1712377838620,-300.56822192,0.00024899,2]
[321675281,1712377838629,-300.56822192,0.00024899,2]
[321675282,1712377838639,-300.56822192,0.000249,2]
[321675283,1712377838648,-185.72454724,0.000249,2]
[321675284,1712377838658,-170.91181161,0.000249,2]
[321675285,1712377838667,-414.80960271,0.000249,2]
[321675286,1712377838676,-5546.2557569,0.000249,2]
[321675287,1712377838685,-300.56822192,0.000249,2]
[321675288,1712377838694,-3995.21515427,0.000249,9]
[321675289,1712377838704,-150.0,0.00024913,2]
[321675290,1712377838713,-150.0,0.00024919,2]
[321675291,1712377838722,-150.0,0.00024924,2]
[321675292,1712377838732,-150.0,0.00024925,2]
[321675293,1712377838741,-150.0,0.00024929,2]
[321675294,1712377838751,-150.0,0.00024931,2]
[321675295,1712377838760,-150.0,0.00024932,2]
[321675296,1712377838769,-150.0,0.00024933,2]
[321675297,1712377838779,-150.0,0.00024943,2]
[321675298,1712377838788,-150.0,0.00024952,2]
[321675299,1712377838797,-150.0,0.00024953,2]
[321675300,1712377838807,-150.0,0.00024961,2]
[321675301,1712377838816,-150.0,0.00024962,2]
[321675302,1712377838825,-150.0,0.00024963,2]
[321675303,1712377838834,-150.0,0.00024966,2]
[321675304,1712377838843,-150.0,0.00024971,2]
[321675305,1712377838852,-150.0,0.00024971,2]
[321675306,1712377838862,-150.0,0.00024972,2]
[321675307,1712377838872,-150.0,0.00024977,2]
[321675308,1712377838880,-150.0,0.00024981,2]
[321675309,1712377838889,-225.21238411,0.00024992,2]
[321675310,1712377838898,-568.27243385,0.00024992,2]
[321675311,1712377838907,-452.23181585,0.00024992,2]
[321675312,1712377838917,-266.01423954,0.00024992,2]
[321675313,1712377838926,-842.74084109,0.00024993,2]
[321675314,1712377838935,-156.42033971,0.00024993,2]
[321675315,1712377838945,-260.08259237,0.00024993,2]
[321675316,1712377838954,-308.11300013,0.00024993,2]
[321675317,1712377838963,-500.0,0.00024993,2]
[321675318,1712377838973,-620.83,0.00024993,2]
[321675319,1712377838982,-500.0,0.00024993,2]
[321675320,1712377838991,-500.0,0.00024993,2]
[321675321,1712377839001,-500.0,0.00024993,2]
[321675322,1712377839010,-500.0,0.00024993,2]
[321675323,1712377839019,-500.0,0.00024993,2]
[321675324,1712377839028,-500.0,0.00024993,2]
[321675325,1712377839037,-200.0,0.00024994,2]
[321675326,1712377839047,-2000.0,0.00024994,2]
[321675327,1712377839057,-200.0,0.00024994,2]
[321675328,1712377839068,-150.0,0.00024994,2]
[321675329,1712377839078,-200.0,0.00024994,2]
[321675330,1712377839088,-1637.79613,0.00024994,2]
[321675331,1712377839097,-500.0,0.00024994,2]
[321675332,1712377839107,-41676.9518856,0.00024994,2]
[321675333,1712377839116,-638.36781173,0.00024994,2]
[321675334,1712377839125,-12816.0806871,0.00024994,2]
[321675335,1712377839134,-500.0,0.00024994,2]
[321675336,1712377839147,-18757.8572242,0.00024994,2]
[321675337,1712377839156,-229.82981196,0.00024994,2]
[321675338,1712377839165,-43988.3343702,0.00024994,2]
[321675339,1712377839174,-6013.8201053,0.00024994,2]
[321675340,1712377839184,-295.77647718,0.00024995,2]
[321675341,1712377839193,-200.57408197,0.00024995,2]
[321675342,1712377839202,-312.30758997,0.00024995,2]
[321675343,1712377839211,-517.59481635,0.00024995,2]